{"text_format":"1","workbook":"xlsx","n_sheets":2,"sheets":["Sheet1","الكشف"],"not_rendered":{"charts":0,"images":0,"macros":1,"external_links":0,"defined_names":0,"comments":0,"pivot_tables":0},"unopened":[],"bounds":{"document_bytes":16777216,"sheet_cells":100000,"rows_first":2000,"rows_last":500,"rows_between":2000,"halvings":0,"cell_chars":16384,"cell_head_chars":4096},"cells_cut":0,"cells_raw":0,"read":"whole","date_system":"1900"}

{"sheet":"Sheet1","index":0,"n_rows":6,"n_cols":9,"rows_kept":6,"cut":false,"hidden":false,"merged":[]}
[]
[]
[]
[]
[null,"Contact","Message","الموافق","تاريخ الموعد بالتاريخ الهجري"]
[null,966540089913,{"$f":"CONCATENATE(F6,TEXT(E6,\"[$-,117]B2yyyy/mm/dd;@\"),\"الموافق\",TEXT(D6,\"yyyy/mm/dd\"))","v":"عزيزي موعدك ب1444/12/15الموافق2023/07/03"},{"$f":"E6","v":"2023-07-03"},"2023-07-03","عزيزي موعدك ب",null,{"$f":"HYPERLINK(\"https://api.whatsapp.com/send?phone=966\"&BI1966,B6)","v":966540089913},{"$f":"HYPERLINK(\"https://wa.me/send?phone=%2B\"&Tbl[[#This Row],[Contact]])","v":"https://wa.me/send?phone=%2B966540089913"}]

{"sheet":"الكشف","index":1,"n_rows":21,"n_cols":12,"rows_kept":21,"cut":false,"hidden":false,"merged":[]}
[]
[]
[null,"نص الرسالة المطلوب أرسلها بالواتساب بهذا الشكل"]
[null,1,"المطلوب مع الشكر كود  او ارتباط تشعبي  لكي بتم ارسالة الرسالة في عامودk على شكل نص بالواتساب بظغط على الرابط في عامود L"]
[]
["التسلسل","الاسم","العمر","الجنس","الموعد","الموافق","المطلوب","المتاخر","المجموع","رقم الجوال","نص الرسالة","رابط الإرسال"]
[1,"محمد احمد1",30,"ذكر","2023-07-08",{"$f":"E7","v":"2023-07-08"},999,111,{"$f":"G7+H7","v":1110},540089913,{"$f":"CONCATENATE(\"عزيزي \",B7,\"السلام عليكم نشعركم ان موعدكم بتاريخ  \",TEXT(E7,\"[$-,117]B2yyyy/mm/dd;@\"),\"الموافق\",TEXT(F7,\"yyyy/mm/dd\"),\"والمبلغ المطلوب \",G7,\"ريال \",\"والمتاخر\",H7,\" ريال \",\"الإجمالي  \",I7,\" ريال \",\"نامل المسارعة بالتسديد \",)","v":"عزيزي محمد احمد1السلام عليكم نشعركم ان موعدكم بتاريخ  2023/07/08الموافق2023/07/08والمبلغ المطلوب 999ريال والمتاخر111 ريال الإجمالي  1110 ريال نامل المسارعة بالتسديد "},"محمد احمد1"]
[2,"محمد احمد2",31,"ذكر","2023-07-09",{"$f":"E8","v":"2023-07-09"},1000,51,{"$f":"G8+H8","v":1051},540089913,{"$f":"CONCATENATE(\"عزيزي%0A*\",B8,\"*%0Aالسلام عليكم نشعركم ان موعدكم بتاريخ%0A\",TEXT(E8,\"[$-,117]B2yyyy/mm/dd;@\"),\"%0Aالموافق\",TEXT(F8,\"yyyy/mm/dd\"),\"%0Aوالمبلغ المطلوب \",G8,\"ريال \",\"%0Aوالمتاخر\",H8,\" ريال \",\"%0A*الإجمالي+\",I8,\" ريال* \",\"%0Aنامل المسارعة بالتسديد \",)","v":"عزيزي%0A*محمد احمد2*%0Aالسلام عليكم نشعركم ان موعدكم بتاريخ%0A2023/07/09%0Aالموافق2023/07/09%0Aوالمبلغ المطلوب 1000ريال %0Aوالمتاخر51 ريال %0A*الإجمالي+1051 ريال* %0Aنامل المسارعة بالتسديد "},"محمد احمد2"]
[3,"محمد احمد3",32,"ذكر","2023-07-10","2023-07-10",1000,52,1052,540089913,"عزيزي%0A*محمد احمد3*%0Aالسلام عليكم نشعركم ان موعدكم بتاريخ%0A2023/07/10%0Aالموافق2023/07/10%0Aوالمبلغ المطلوب 1000ريال %0Aوالمتاخر52 ريال %0A*الإجمالي+1052 ريال* %0Aنامل المسارعة بالتسديد ","محمد احمد3"]
[4,"محمد احمد4",33,"ذكر","2023-07-11","2023-07-11",1000,53,1053,540089913,"عزيزي%0A*محمد احمد4*%0Aالسلام عليكم نشعركم ان موعدكم بتاريخ%0A2023/07/11%0Aالموافق2023/07/11%0Aوالمبلغ المطلوب 1000ريال %0Aوالمتاخر53 ريال %0A*الإجمالي+1053 ريال* %0Aنامل المسارعة بالتسديد ","محمد احمد4"]
[5,"محمد احمد5",34,"ذكر","2023-07-12","2023-07-12",1000,54,1054,540089913,"عزيزي%0A*محمد احمد5*%0Aالسلام عليكم نشعركم ان موعدكم بتاريخ%0A2023/07/12%0Aالموافق2023/07/12%0Aوالمبلغ المطلوب 1000ريال %0Aوالمتاخر54 ريال %0A*الإجمالي+1054 ريال* %0Aنامل المسارعة بالتسديد ",{"$f":"HYPERLINK(\"https://wa.me/966\"&J11&\"?text=\"&T11,B11)","v":"محمد احمد5"}]
[6,"محمد احمد6",35,"ذكر","2023-07-13","2023-07-13",1000,55,1055,540089913,"عزيزي%0A*محمد احمد6*%0Aالسلام عليكم نشعركم ان موعدكم بتاريخ%0A2023/07/13%0Aالموافق2023/07/13%0Aوالمبلغ المطلوب 1000ريال %0Aوالمتاخر55 ريال %0A*الإجمالي+1055 ريال* %0Aنامل المسارعة بالتسديد ","محمد احمد6"]
[7,"محمد احمد7",36,"ذكر","2023-07-14","2023-07-14",1000,56,1056,540089913,"عزيزي%0A*محمد احمد7*%0Aالسلام عليكم نشعركم ان موعدكم بتاريخ%0A2023/07/14%0Aالموافق2023/07/14%0Aوالمبلغ المطلوب 1000ريال %0Aوالمتاخر56 ريال %0A*الإجمالي+1056 ريال* %0Aنامل المسارعة بالتسديد ","محمد احمد7"]
[8,"محمد احمد8",37,"ذكر","2023-07-15","2023-07-15",1000,57,1057,540089913,"عزيزي%0A*محمد احمد8*%0Aالسلام عليكم نشعركم ان موعدكم بتاريخ%0A2023/07/15%0Aالموافق2023/07/15%0Aوالمبلغ المطلوب 1000ريال %0Aوالمتاخر57 ريال %0A*الإجمالي+1057 ريال* %0Aنامل المسارعة بالتسديد ","محمد احمد8"]
[9,"محمد احمد9",38,"ذكر","2023-07-16","2023-07-16",1000,58,1058,540089913,"عزيزي%0A*محمد احمد9*%0Aالسلام عليكم نشعركم ان موعدكم بتاريخ%0A2023/07/16%0Aالموافق2023/07/16%0Aوالمبلغ المطلوب 1000ريال %0Aوالمتاخر58 ريال %0A*الإجمالي+1058 ريال* %0Aنامل المسارعة بالتسديد ","محمد احمد9"]
[10,"محمد احمد10",39,"ذكر","2023-07-17","2023-07-17",1000,59,1059,540089913,"عزيزي%0A*محمد احمد10*%0Aالسلام عليكم نشعركم ان موعدكم بتاريخ%0A2023/07/17%0Aالموافق2023/07/17%0Aوالمبلغ المطلوب 1000ريال %0Aوالمتاخر59 ريال %0A*الإجمالي+1059 ريال* %0Aنامل المسارعة بالتسديد ","محمد احمد10"]
[11,"محمد احمد11",40,"ذكر","2023-07-18","2023-07-18",1000,60,1060,540089913,"عزيزي%0A*محمد احمد11*%0Aالسلام عليكم نشعركم ان موعدكم بتاريخ%0A2023/07/18%0Aالموافق2023/07/18%0Aوالمبلغ المطلوب 1000ريال %0Aوالمتاخر60 ريال %0A*الإجمالي+1060 ريال* %0Aنامل المسارعة بالتسديد ","محمد احمد11"]
[12,"محمد احمد12",41,"ذكر","2023-07-19","2023-07-19",1000,61,1061,540089913,"عزيزي%0A*محمد احمد12*%0Aالسلام عليكم نشعركم ان موعدكم بتاريخ%0A2023/07/19%0Aالموافق2023/07/19%0Aوالمبلغ المطلوب 1000ريال %0Aوالمتاخر61 ريال %0A*الإجمالي+1061 ريال* %0Aنامل المسارعة بالتسديد ","محمد احمد12"]
[13,"محمد احمد13",42,"ذكر","2023-07-20","2023-07-20",1000,62,1062,540089913,"عزيزي%0A*محمد احمد13*%0Aالسلام عليكم نشعركم ان موعدكم بتاريخ%0A2023/07/20%0Aالموافق2023/07/20%0Aوالمبلغ المطلوب 1000ريال %0Aوالمتاخر62 ريال %0A*الإجمالي+1062 ريال* %0Aنامل المسارعة بالتسديد ","محمد احمد13"]
[14,"محمد احمد14",43,"ذكر","2023-07-21","2023-07-21",1000,63,1063,540089913,"عزيزي%0A*محمد احمد14*%0Aالسلام عليكم نشعركم ان موعدكم بتاريخ%0A2023/07/21%0Aالموافق2023/07/21%0Aوالمبلغ المطلوب 1000ريال %0Aوالمتاخر63 ريال %0A*الإجمالي+1063 ريال* %0Aنامل المسارعة بالتسديد ","محمد احمد14"]
[15,"محمد احمد15",44,"ذكر","2023-07-22","2023-07-22",1000,64,1064,540089913,"عزيزي%0A*محمد احمد15*%0Aالسلام عليكم نشعركم ان موعدكم بتاريخ%0A2023/07/22%0Aالموافق2023/07/22%0Aوالمبلغ المطلوب 1000ريال %0Aوالمتاخر64 ريال %0A*الإجمالي+1064 ريال* %0Aنامل المسارعة بالتسديد ","محمد احمد15"]